[Event "*** Titled Tuesday Blitz"]
[Site "Chess.com"]
[Date "2020.01.07"]
[Round "1"]
[White "Irishchessman16"]
[Black "Mr_Sinigami"]
[Result "0-1"]
[WhiteElo "2192"]
[BlackElo "2571"]
[TimeControl "180+2"]
[EndTime "13:06:27 PST"]
[Termination "Mr_Sinigami won by resignation"]

1. d4 {[%clk 0:03:01.3]} 1... Nf6 {[%clk 0:02:59.8]} 2. c4 {[%clk 0:03:01.6]}
2... c5 {[%clk 0:03:01.3]} 3. Nf3 {[%clk 0:02:58.5]} 3... g6 {[%clk 0:02:58.2]}
4. dxc5 {[%clk 0:02:53.7]} 4... Na6 {[%clk 0:02:52.2]} 5. g3 {[%clk 0:02:53.4]}
5... Nxc5 {[%clk 0:02:51.6]} 6. Bg2 {[%clk 0:02:54.7]} 6... Bg7 {[%clk
0:02:52.2]} 7. O-O {[%clk 0:02:56.2]} 7... O-O {[%clk 0:02:52.3]} 8. Nc3 {[%clk
0:02:57.8]} 8... d6 {[%clk 0:02:52.1]} 9. Nd4 {[%clk 0:02:49.9]} 9... a6 {[%clk
0:02:47.5]} 10. b3 {[%clk 0:02:50.3]} 10... Ne6 {[%clk 0:02:31.8]} 11. Bb2
{[%clk 0:02:41.6]} 11... Rb8 {[%clk 0:02:19.2]} 12. Rc1 {[%clk 0:02:35.7]} 12...
h5 {[%clk 0:02:15]} 13. Nxe6 {[%clk 0:02:28.5]} 13... Bxe6 {[%clk 0:02:15.1]}
14. Nd5 {[%clk 0:02:28.8]} 14... Nxd5 {[%clk 0:02:01.9]} 15. Bxg7 {[%clk
0:02:28.6]} 15... Ne3 {[%clk 0:02:01.6]} 16. Qd3 {[%clk 0:02:25.5]} 16... Nxf1
{[%clk 0:01:52.3]} 17. Bxf8 {[%clk 0:02:26.1]} 17... Nxg3 {[%clk 0:01:50.9]} 18.
Bxe7 {[%clk 0:02:10.4]} 18... Nxe2+ {[%clk 0:01:49]} 19. Qxe2 {[%clk 0:02:11.3]}
19... Qxe7 {[%clk 0:01:50.3]} 20. Re1 {[%clk 0:02:10.6]} 20... Qg5 {[%clk
0:01:49.2]} 21. Qd3 {[%clk 0:02:07.6]} 21... Rd8 {[%clk 0:01:41.3]} 22. Qg3
{[%clk 0:02:02.3]} 22... Qxg3 {[%clk 0:01:35.4]} 23. hxg3 {[%clk 0:02:04.2]}
23... b5 {[%clk 0:01:36.7]} 24. cxb5 {[%clk 0:02:02.7]} 24... axb5 {[%clk
0:01:38.6]} 25. Re4 {[%clk 0:02:01.3]} 25... Rd7 {[%clk 0:01:18.3]} 26. Rb4
{[%clk 0:01:58.4]} 26... Ra7 {[%clk 0:01:18.4]} 27. Rxb5 {[%clk 0:01:58.4]}
27... Rxa2 {[%clk 0:01:18.5]} 28. Rb6 {[%clk 0:01:58.1]} 28... d5 {[%clk
0:01:17.3]} 29. Rd6 {[%clk 0:01:58.7]} 29... Rb2 {[%clk 0:01:14.9]} 30. Kf1
{[%clk 0:01:34.8]} 30... Kf8 {[%clk 0:01:10.9]} 31. Rb6 {[%clk 0:01:29.1]} 31...
d4 {[%clk 0:01:10]} 32. Be4 {[%clk 0:01:28.1]} 32... Rxb3 {[%clk 0:01:05.6]} 33.
Rd6 {[%clk 0:01:27]} 33... Rb4 {[%clk 0:01:03]} 34. Ke2 {[%clk 0:01:27.3]} 34...
Ke7 {[%clk 0:01:02.4]} 35. Ra6 {[%clk 0:01:28.4]} 35... Bc4+ {[%clk 0:01:02.5]}
0-1

[Event "*** Titled Tuesday Blitz"]
[Site "Chess.com"]
[Date "2020.01.07"]
[Round "1"]
[White "Walter_White_Poland"]
[Black "therealtrader"]
[Result "0-1"]
[WhiteElo "2232"]
[BlackElo "2597"]
[TimeControl "180+2"]
[EndTime "13:06:32 PST"]
[Termination "therealtrader won by checkmate"]

1. e4 {[%clk 0:02:58]} 1... c5 {[%clk 0:03:00.7]} 2. Nf3 {[%clk 0:02:58.1]} 2...
d6 {[%clk 0:03:02]} 3. d4 {[%clk 0:02:58.9]} 3... cxd4 {[%clk 0:03:03.3]} 4.
Nxd4 {[%clk 0:02:59.6]} 4... Nf6 {[%clk 0:03:04.6]} 5. Nc3 {[%clk 0:02:59.8]}
5... a6 {[%clk 0:03:05.8]} 6. Bg5 {[%clk 0:03:00.7]} 6... e6 {[%clk 0:03:06.3]}
7. f4 {[%clk 0:03:00.1]} 7... h6 {[%clk 0:03:07.1]} 8. Bh4 {[%clk 0:03:00.3]}
8... Qb6 {[%clk 0:03:08]} 9. a3 {[%clk 0:03:00.4]} 9... Be7 {[%clk 0:03:04.7]}
10. Bf2 {[%clk 0:02:59.8]} 10... Qc7 {[%clk 0:03:05.5]} 11. Qf3 {[%clk
0:02:59.5]} 11... Nbd7 {[%clk 0:03:06.6]} 12. O-O-O {[%clk 0:03:00]} 12... b5
{[%clk 0:03:07.5]} 13. Bd3 {[%clk 0:02:52.7]} 13... Bb7 {[%clk 0:03:08.5]} 14.
Qh3 {[%clk 0:02:49.9]} 14... Nc5 {[%clk 0:02:30.8]} 15. Rhe1 {[%clk 0:02:43.2]}
15... Rc8 {[%clk 0:02:31.8]} 16. e5 {[%clk 0:02:37.7]} 16... dxe5 {[%clk
0:02:30.7]} 17. fxe5 {[%clk 0:02:38.8]} 17... Nd5 {[%clk 0:02:29.9]} 18. Nxd5
{[%clk 0:02:04.7]} 18... Bxd5 {[%clk 0:02:30.3]} 19. Qg4 {[%clk 0:01:58.1]}
19... O-O {[%clk 0:02:25.4]} 20. Bg3 {[%clk 0:00:12]} 20... Rfd8 {[%clk
0:02:24.1]} 21. Bf4 {[%clk 0:00:11.1]} 21... Kf8 {[%clk 0:02:24.1]} 22. Re3
{[%clk 0:00:09.6]} 22... Nxd3+ {[%clk 0:02:16.5]} 23. Rdxd3 {[%clk 0:00:07.1]}
23... Be4 {[%clk 0:02:17.4]} 24. Rc3 {[%clk 0:00:07.5]} 24... Rxd4 {[%clk
0:02:11.3]} 25. Rxc7 {[%clk 0:00:07]} 25... Rxc7 {[%clk 0:02:12.5]} 26. Rc3
{[%clk 0:00:06.5]} 26... Rdc4 {[%clk 0:02:10.7]} 27. Rxc4 {[%clk 0:00:07.2]}
27... Rxc4 {[%clk 0:02:11.6]} 28. c3 {[%clk 0:00:08.1]} 28... Bd5 {[%clk
0:01:59.4]} 29. Qg3 {[%clk 0:00:08.1]} 29... Rxf4 {[%clk 0:01:59.7]} 30. Kc2
{[%clk 0:00:08.4]} 30... Re4 {[%clk 0:01:57.2]} 31. Qf2 {[%clk 0:00:08.5]} 31...
Rxe5 {[%clk 0:01:55.7]} 32. Qb6 {[%clk 0:00:08.7]} 32... f6 {[%clk 0:01:54.6]}
33. Qxa6 {[%clk 0:00:09.1]} 33... Re2+ {[%clk 0:01:55.9]} 34. Kd3 {[%clk
0:00:08.9]} 34... Bc4+ {[%clk 0:01:57.1]} 35. Kd4 {[%clk 0:00:08.6]} 35... e5#
{[%clk 0:01:59]} 0-1

[Event "*** Titled Tuesday Blitz"]
[Site "Chess.com"]
[Date "2020.01.07"]
[Round "1"]
[White "DoHoChess"]
[Black "Ariadna_Atreides"]
[Result "1-0"]
[WhiteElo "2531"]
[BlackElo "2060"]
[TimeControl "180+2"]
[EndTime "13:06:42 PST"]
[Termination "DoHoChess won by checkmate"]

1. d4 {[%clk 0:03:01.7]} 1... Nf6 {[%clk 0:02:59.8]} 2. Nc3 {[%clk 0:03:02.6]}
2... d5 {[%clk 0:02:54.5]} 3. Bf4 {[%clk 0:03:03.7]} 3... Bf5 {[%clk 0:02:50.7]}
4. e3 {[%clk 0:03:04.2]} 4... e6 {[%clk 0:02:49.2]} 5. Nf3 {[%clk 0:03:04.5]}
5... Bd6 {[%clk 0:02:49.5]} 6. Ne5 {[%clk 0:03:05.5]} 6... O-O {[%clk
0:02:47.7]} 7. g4 {[%clk 0:03:03.9]} 7... Be4 {[%clk 0:02:26]} 8. f3 {[%clk
0:03:03.5]} 8... Bg6 {[%clk 0:02:24.9]} 9. h4 {[%clk 0:03:04.4]} 9... h5 {[%clk
0:02:13.6]} 10. g5 {[%clk 0:02:56.6]} 10... Nfd7 {[%clk 0:02:06.5]} 11. Nxg6
{[%clk 0:02:57.1]} 11... fxg6 {[%clk 0:02:06.8]} 12. Bxd6 {[%clk 0:02:58]} 12...
cxd6 {[%clk 0:02:07.3]} 13. Bd3 {[%clk 0:02:39.6]} 13... Kf7 {[%clk 0:01:48.7]}
14. e4 {[%clk 0:02:39.4]} 14... Re8 {[%clk 0:01:43.3]} 15. Qd2 {[%clk
0:02:35.2]} 15... Nc6 {[%clk 0:01:40.7]} 16. O-O-O {[%clk 0:02:29.2]} 16... dxe4
{[%clk 0:01:23.7]} 17. fxe4 {[%clk 0:02:19.9]} 17... Nxd4 {[%clk 0:01:13.1]} 18.
Qf2+ {[%clk 0:02:20.5]} 18... Kg8 {[%clk 0:01:11.2]} 19. Qxd4 {[%clk 0:02:21.7]}
19... Nc5 {[%clk 0:01:08.3]} 20. Bc4 {[%clk 0:02:21.3]} 20... a6 {[%clk
0:01:07.7]} 21. Qxd6 {[%clk 0:02:22]} 21... Qxd6 {[%clk 0:01:04.8]} 22. Rxd6
{[%clk 0:02:23.9]} 22... b5 {[%clk 0:01:05.4]} 23. Bb3 {[%clk 0:02:25.2]} 23...
b4 {[%clk 0:01:03.5]} 24. Ne2 {[%clk 0:02:24.5]} 24... Rac8 {[%clk 0:00:54.2]}
25. Nf4 {[%clk 0:02:20.2]} 25... Kh7 {[%clk 0:00:52.6]} 26. e5 {[%clk
0:02:07.3]} 26... a5 {[%clk 0:00:47.8]} 27. Nxe6 {[%clk 0:02:06]} 27... Ne4
{[%clk 0:00:35.9]} 28. Rd4 {[%clk 0:02:06.1]} 28... Nf2 {[%clk 0:00:30.8]} 29.
Rf1 {[%clk 0:02:05]} 29... Ng4 {[%clk 0:00:30.6]} 30. Rd7 {[%clk 0:02:01.5]}
30... Nxe5 {[%clk 0:00:29.5]} 31. Rxg7+ {[%clk 0:02:00.8]} 31... Kh8 {[%clk
0:00:29.9]} 32. Ra7 {[%clk 0:01:51.8]} 32... Rc6 {[%clk 0:00:19.8]} 33. Rf8+
{[%clk 0:01:48]} 33... Rxf8 {[%clk 0:00:19.5]} 34. Nxf8 {[%clk 0:01:49.9]} 34...
Nd3+ {[%clk 0:00:10.4]} 35. Kd2 {[%clk 0:01:49.3]} 35... Nc5 {[%clk 0:00:10.9]}
36. Rh7# {[%clk 0:01:49.8]} 1-0

[Event "*** Titled Tuesday Blitz"]
[Site "Chess.com"]
[Date "2020.01.07"]
[Round "1"]
[White "SoltaniciR"]
[Black "Rainbow2014"]
[Result "1-0"]
[WhiteElo "2617"]
[BlackElo "2275"]
[TimeControl "180+2"]
[EndTime "13:06:51 PST"]
[Termination "SoltaniciR won by resignation"]

1. e4 {[%clk 0:02:47]} 1... c5 {[%clk 0:02:20.1]} 2. Nf3 {[%clk 0:02:46.8]} 2...
e6 {[%clk 0:02:18.8]} 3. d4 {[%clk 0:02:47.5]} 3... cxd4 {[%clk 0:02:14.2]} 4.
Nxd4 {[%clk 0:02:49.4]} 4... a6 {[%clk 0:02:05]} 5. Nc3 {[%clk 0:02:50.8]} 5...
Qc7 {[%clk 0:01:59.5]} 6. Bd3 {[%clk 0:02:51.4]} 6... Bc5 {[%clk 0:01:58.6]} 7.
Nb3 {[%clk 0:02:51]} 7... Be7 {[%clk 0:01:59.7]} 8. Qg4 {[%clk 0:02:49.4]} 8...
g6 {[%clk 0:02:00.1]} 9. Qe2 {[%clk 0:02:47.2]} 9... d6 {[%clk 0:01:52.9]} 10.
Be3 {[%clk 0:02:44.7]} 10... Nf6 {[%clk 0:01:15.6]} 11. Bh6 {[%clk 0:02:43.7]}
11... Nc6 {[%clk 0:01:13]} 12. O-O-O {[%clk 0:02:43.2]} 12... b5 {[%clk
0:01:10.7]} 13. Kb1 {[%clk 0:02:41.1]} 13... Bb7 {[%clk 0:01:01.3]} 14. Rhe1
{[%clk 0:02:40.7]} 14... Ne5 {[%clk 0:00:56.9]} 15. f4 {[%clk 0:02:38.3]} 15...
Neg4 {[%clk 0:00:54.4]} 16. Bg5 {[%clk 0:02:32.3]} 16... h6 {[%clk 0:00:40.8]}
17. Bh4 {[%clk 0:02:33]} 17... h5 {[%clk 0:00:30.2]} 18. h3 {[%clk 0:02:32.6]}
18... Nh6 {[%clk 0:00:29.6]} 19. e5 {[%clk 0:02:33.3]} 19... dxe5 {[%clk
0:00:21.3]} 20. fxe5 {[%clk 0:02:33.8]} 20... Nd5 {[%clk 0:00:21.7]} 21. Nxd5
{[%clk 0:02:32]} 21... Bxd5 {[%clk 0:00:23.1]} 22. Bxe7 {[%clk 0:02:32.5]} 22...
Qxe7 {[%clk 0:00:23.1]} 23. Be4 {[%clk 0:02:30.3]} 23... Bxe4 {[%clk 0:00:21]}
24. Qxe4 {[%clk 0:02:30.6]} 24... O-O {[%clk 0:00:22.5]} 25. g4 {[%clk
0:02:31.5]} 25... h4 {[%clk 0:00:20.6]} 26. Qf4 {[%clk 0:02:23]} 26... g5 {[%clk
0:00:18.9]} 27. Qe3 {[%clk 0:02:23.3]} 27... Kg7 {[%clk 0:00:19]} 28. Nd4 {[%clk
0:02:24]} 28... Ng8 {[%clk 0:00:19.2]} 29. Nc6 {[%clk 0:02:20.8]} 29... Qb7
{[%clk 0:00:18.6]} 30. Qxg5+ {[%clk 0:02:21.4]} 30... Kh7 {[%clk 0:00:19]} 31.
Qxh4+ {[%clk 0:02:22.1]} 31... Kg7 {[%clk 0:00:20.1]} 32. Qg5+ {[%clk
0:02:03.2]} 32... Kh7 {[%clk 0:00:20.3]} 33. Nd4 {[%clk 0:01:57]} 33... Rac8
{[%clk 0:00:20.2]} 34. h4 {[%clk 0:01:43.8]} 34... Qe7 {[%clk 0:00:20.9]} 35.
Qh5+ {[%clk 0:01:43]} 35... Kg7 {[%clk 0:00:21.8]} 36. g5 {[%clk 0:01:44.4]}
36... Rc3 {[%clk 0:00:22.2]} 37. bxc3 {[%clk 0:01:44.1]} 37... b4 {[%clk
0:00:21.7]} 38. c4 {[%clk 0:01:43.9]} 1-0

[Event "*** Titled Tuesday Blitz"]
[Site "Chess.com"]
[Date "2020.01.07"]
[Round "1"]
[White "HouseOfDurin"]
[Black "Ginzburg_Yakov"]
[Result "0-1"]
[WhiteElo "2107"]
[BlackElo "2545"]
[TimeControl "180+2"]
[EndTime "13:06:58 PST"]
[Termination "Ginzburg_Yakov won by checkmate"]

1. d4 {[%clk 0:02:11.4]} 1... d5 {[%clk 0:02:59.4]} 2. Bg5 {[%clk 0:02:10.3]}
2... h6 {[%clk 0:02:59.1]} 3. Bh4 {[%clk 0:02:10.7]} 3... c6 {[%clk 0:03:00.3]}
4. f3 {[%clk 0:02:09.9]} 4... Qb6 {[%clk 0:03:00.1]} 5. b3 {[%clk 0:02:10.4]}
5... e5 {[%clk 0:02:59.3]} 6. dxe5 {[%clk 0:01:59.3]} 6... Qb4+ {[%clk
0:02:58.5]} 7. Qd2 {[%clk 0:01:51.8]} 7... Qxh4+ {[%clk 0:02:58.1]} 8. g3 {[%clk
0:01:53.2]} 8... Qb4 {[%clk 0:02:51.3]} 9. c3 {[%clk 0:01:51.5]} 9... Qb6 {[%clk
0:02:51.8]} 10. e3 {[%clk 0:01:45]} 10... Bc5 {[%clk 0:02:51]} 11. Kf2 {[%clk
0:01:39.9]} 11... a5 {[%clk 0:02:49.5]} 12. Ne2 {[%clk 0:01:27.7]} 12... Ne7
{[%clk 0:02:48.6]} 13. Nd4 {[%clk 0:01:27.8]} 13... O-O {[%clk 0:02:46.2]} 14.
Bd3 {[%clk 0:01:22.4]} 14... Nd7 {[%clk 0:02:27.4]} 15. f4 {[%clk 0:01:22.6]}
15... Qc7 {[%clk 0:02:10.6]} 16. Bc2 {[%clk 0:01:10.5]} 16... Re8 {[%clk
0:02:01.9]} 17. h4 {[%clk 0:01:07.9]} 17... Nf8 {[%clk 0:01:58.8]} 18. Qe2
{[%clk 0:01:00.3]} 18... Bxd4 {[%clk 0:01:50.1]} 19. cxd4 {[%clk 0:01:02.2]}
19... Bf5 {[%clk 0:01:50.2]} 20. Nc3 {[%clk 0:01:00.4]} 20... Bxc2 {[%clk
0:01:49.5]} 21. Qxc2 {[%clk 0:01:02.3]} 21... c5 {[%clk 0:01:50.1]} 22. Nb5
{[%clk 0:01:01.9]} 22... Qd7 {[%clk 0:01:48.1]} 23. Nd6 {[%clk 0:00:56.6]} 23...
cxd4 {[%clk 0:01:42.9]} 24. Nxe8 {[%clk 0:00:42.1]} 24... dxe3+ {[%clk
0:01:43.9]} 25. Kxe3 {[%clk 0:00:43.9]} 25... Rxe8 {[%clk 0:01:43.4]} 26. Rad1
{[%clk 0:00:41.5]} 26... Rc8 {[%clk 0:01:33.8]} 27. Qd3 {[%clk 0:00:41.1]} 27...
Qg4 {[%clk 0:01:33.5]} 28. Kf2 {[%clk 0:00:41.7]} 28... Ne6 {[%clk 0:01:24.3]}
29. Rd2 {[%clk 0:00:42.3]} 29... Nc5 {[%clk 0:01:24.8]} 30. Qe2 {[%clk
0:00:28.1]} 30... Ne4+ {[%clk 0:01:24.6]} 31. Kg2 {[%clk 0:00:29.2]} 31... Qxg3+
{[%clk 0:01:25.4]} 32. Kf1 {[%clk 0:00:27.8]} 32... Rc1+ {[%clk 0:01:25.5]} 33.
Rd1 {[%clk 0:00:27.5]} 33... Rxd1+ {[%clk 0:01:26.4]} 34. Qxd1 {[%clk
0:00:28.5]} 34... Qf2# {[%clk 0:01:27.2]} 0-1

[Event "*** Titled Tuesday Blitz"]
[Site "Chess.com"]
[Date "2020.01.07"]
[Round "1"]
[White "JonahWillow"]
[Black "Chimpinha"]
[Result "1-0"]
[WhiteElo "2782"]
[BlackElo "2406"]
[TimeControl "180+2"]
[EndTime "13:07:01 PST"]
[Termination "JonahWillow won by resignation"]

1. e4 {[%clk 0:03:01.9]} 1... e6 {[%clk 0:03:01.1]} 2. d4 {[%clk 0:03:02.6]}
2... d5 {[%clk 0:03:02.3]} 3. Nd2 {[%clk 0:03:02.3]} 3... c5 {[%clk 0:03:01]} 4.
Ngf3 {[%clk 0:03:02]} 4... cxd4 {[%clk 0:02:57.6]} 5. exd5 {[%clk 0:03:03]} 5...
Qxd5 {[%clk 0:02:57.1]} 6. Bc4 {[%clk 0:03:04.2]} 6... Qd8 {[%clk 0:02:57.8]} 7.
O-O {[%clk 0:02:56.1]} 7... Nc6 {[%clk 0:02:58.9]} 8. Nb3 {[%clk 0:02:56.3]}
8... a6 {[%clk 0:02:52.8]} 9. a4 {[%clk 0:02:46.9]} 9... Qc7 {[%clk 0:02:50.9]}
10. Qe2 {[%clk 0:02:47]} 10... Nf6 {[%clk 0:02:45.4]} 11. Rd1 {[%clk 0:02:47.7]}
11... Bd6 {[%clk 0:02:35.3]} 12. Nbxd4 {[%clk 0:02:44.5]} 12... Nxd4 {[%clk
0:02:34.7]} 13. Rxd4 {[%clk 0:02:46.4]} 13... Bd7 {[%clk 0:02:27.9]} 14. Bg5
{[%clk 0:02:40.5]} 14... Bc5 {[%clk 0:02:07.9]} 15. Rh4 {[%clk 0:02:30.7]} 15...
Bc6 {[%clk 0:01:45.3]} 16. Ne5 {[%clk 0:02:18.5]} 16... Bd5 {[%clk 0:00:59.3]}
17. Bxf6 {[%clk 0:02:00.9]} 17... gxf6 {[%clk 0:01:00]} 18. Ng4 {[%clk 0:01:22]}
18... Bxc4 {[%clk 0:00:27.1]} 19. Nxf6+ {[%clk 0:01:22.3]} 19... Ke7 {[%clk
0:00:21.4]} 20. Rxc4 {[%clk 0:01:23.1]} 20... Kxf6 {[%clk 0:00:20]} 21. b4
{[%clk 0:01:23]} 21... b5 {[%clk 0:00:12.6]} 22. Rxc5 {[%clk 0:01:22.5]} 22...
Qd6 {[%clk 0:00:13]} 23. Qf3+ {[%clk 0:01:17]} 23... Ke7 {[%clk 0:00:13.6]} 24.
Qb7+ {[%clk 0:01:18.6]} 24... Kf6 {[%clk 0:00:14]} 25. axb5 {[%clk 0:01:17.5]}
25... Rab8 {[%clk 0:00:13.4]} 26. Qf3+ {[%clk 0:01:18.2]} 26... Ke7 {[%clk
0:00:14.1]} 27. Rxa6 {[%clk 0:01:18.5]} 27... Qd4 {[%clk 0:00:12.4]} 28. Ra7+
{[%clk 0:01:10.5]} 28... Kd8 {[%clk 0:00:13.7]} 29. h3 {[%clk 0:01:06.6]} 29...
Qa1+ {[%clk 0:00:13.9]} 30. Kh2 {[%clk 0:01:07.7]} 30... Qg7 {[%clk 0:00:14.7]}
31. Qd3+ {[%clk 0:01:07.6]} 1-0

[Event "*** Titled Tuesday Blitz"]
[Site "Chess.com"]
[Date "2020.01.07"]
[Round "1"]
[White "Alopekos"]
[Black "maciek_92"]
[Result "0-1"]
[WhiteElo "2417"]
[BlackElo "2803"]
[TimeControl "180+2"]
[EndTime "13:07:11 PST"]
[Termination "maciek_92 won by checkmate"]

1. e4 {[%clk 0:03:01.9]} 1... c5 {[%clk 0:02:59.7]} 2. Nc3 {[%clk 0:03:02.4]}
2... Nc6 {[%clk 0:02:59]} 3. Nge2 {[%clk 0:03:03.4]} 3... Nf6 {[%clk 0:02:58.5]}
4. d4 {[%clk 0:03:04]} 4... cxd4 {[%clk 0:02:59.6]} 5. Nxd4 {[%clk 0:03:05.9]}
5... d6 {[%clk 0:03:01.2]} 6. Bg5 {[%clk 0:03:06.1]} 6... e6 {[%clk 0:03:02.5]}
7. Qd2 {[%clk 0:03:07.1]} 7... a6 {[%clk 0:03:02.7]} 8. O-O-O {[%clk 0:03:08.2]}
8... Bd7 {[%clk 0:03:03.9]} 9. f4 {[%clk 0:03:09.3]} 9... b5 {[%clk 0:03:04.8]}
10. Bxf6 {[%clk 0:02:40.8]} 10... gxf6 {[%clk 0:03:06.7]} 11. Kb1 {[%clk
0:02:41.8]} 11... Qb6 {[%clk 0:03:04.5]} 12. Nce2 {[%clk 0:02:09.9]} 12... b4
{[%clk 0:03:03.1]} 13. f5 {[%clk 0:02:03.3]} 13... Nxd4 {[%clk 0:03:01.2]} 14.
Nxd4 {[%clk 0:02:03.4]} 14... e5 {[%clk 0:03:01.7]} 15. Ne2 {[%clk 0:01:57.8]}
15... h5 {[%clk 0:03:02.9]} 16. Nc1 {[%clk 0:01:43.6]} 16... Rc8 {[%clk
0:02:51.3]} 17. Bd3 {[%clk 0:00:57.9]} 17... a5 {[%clk 0:02:48.5]} 18. Qe2
{[%clk 0:00:55.2]} 18... Qc6 {[%clk 0:02:18.8]} 19. Nb3 {[%clk 0:00:50.6]} 19...
a4 {[%clk 0:02:19.8]} 20. Na5 {[%clk 0:00:51.9]} 20... Qc5 {[%clk 0:02:17.2]}
21. Ba6 {[%clk 0:00:21.1]} 21... Qxa5 {[%clk 0:02:13]} 22. Bxc8 {[%clk
0:00:21.7]} 22... Bxc8 {[%clk 0:02:14.9]} 23. Rd5 {[%clk 0:00:23.2]} 23... Qc7
{[%clk 0:02:02.1]} 24. Qb5+ {[%clk 0:00:23.7]} 24... Bd7 {[%clk 0:02:03]} 25.
Qxb4 {[%clk 0:00:25.2]} 25... Be7 {[%clk 0:02:02.4]} 26. Rhd1 {[%clk 0:00:19.6]}
26... Kf8 {[%clk 0:01:57.2]} 27. Qe1 {[%clk 0:00:12.4]} 27... h4 {[%clk
0:01:57.8]} 28. R5d3 {[%clk 0:00:11.2]} 28... Qb7 {[%clk 0:01:53.5]} 29. Rh3
{[%clk 0:00:06.6]} 29... Bc6 {[%clk 0:01:43.2]} 30. Rxh4 {[%clk 0:00:07.8]}
30... Rxh4 {[%clk 0:01:41.7]} 31. Qxh4 {[%clk 0:00:08.4]} 31... Ke8 {[%clk
0:01:43.6]} 32. Re1 {[%clk 0:00:04.9]} 32... a3 {[%clk 0:01:43.4]} 33. b3 {[%clk
0:00:06.3]} 33... Qb4 {[%clk 0:01:44]} 34. c4 {[%clk 0:00:03.5]} 34... Qc3
{[%clk 0:01:44.9]} 35. Qf2 {[%clk 0:00:04.6]} 35... Bd8 {[%clk 0:01:41.6]} 36.
Re3 {[%clk 0:00:03.8]} 36... Qd4 {[%clk 0:01:42.3]} 37. Qe1 {[%clk 0:00:04.2]}
37... Qb2# {[%clk 0:01:42.2]} 0-1

[Event "*** Titled Tuesday Blitz"]
[Site "Chess.com"]
[Date "2020.01.07"]
[Round "1"]
[White "Dhaydon19"]
[Black "PowerThinking2650"]
[Result "1-0"]
[WhiteElo "2703"]
[BlackElo "2352"]
[TimeControl "180+2"]
[EndTime "13:07:24 PST"]
[Termination "Dhaydon19 won by checkmate"]

1. d4 {[%clk 0:03:01.3]} 1... Nf6 {[%clk 0:03:00.2]} 2. Nf3 {[%clk 0:03:02.3]}
2... g6 {[%clk 0:03:01.1]} 3. Bf4 {[%clk 0:03:03.1]} 3... Bg7 {[%clk 0:03:00]}
4. e3 {[%clk 0:03:04.1]} 4... b6 {[%clk 0:03:00.3]} 5. c4 {[%clk 0:03:03.9]}
5... Bb7 {[%clk 0:02:58.8]} 6. Nc3 {[%clk 0:03:04.7]} 6... O-O {[%clk
0:02:55.5]} 7. Be2 {[%clk 0:03:05]} 7... d6 {[%clk 0:02:54.1]} 8. Qc2 {[%clk
0:03:00.6]} 8... Nbd7 {[%clk 0:02:54]} 9. Rd1 {[%clk 0:03:01]} 9... a6 {[%clk
0:02:53]} 10. h3 {[%clk 0:03:01.2]} 10... Qe8 {[%clk 0:02:52.7]} 11. O-O {[%clk
0:02:56.3]} 11... e5 {[%clk 0:02:53.3]} 12. dxe5 {[%clk 0:02:56.8]} 12... Nxe5
{[%clk 0:02:49.6]} 13. Nxe5 {[%clk 0:02:56.6]} 13... dxe5 {[%clk 0:02:50.3]} 14.
Bg5 {[%clk 0:02:54.1]} 14... h6 {[%clk 0:02:45.5]} 15. Bxf6 {[%clk 0:02:53.7]}
15... Bxf6 {[%clk 0:02:46.4]} 16. Bf3 {[%clk 0:02:50.7]} 16... Bxf3 {[%clk
0:02:31.8]} 17. gxf3 {[%clk 0:02:52.6]} 17... c6 {[%clk 0:02:27.7]} 18. c5
{[%clk 0:02:48.1]} 18... b5 {[%clk 0:02:03.3]} 19. Kg2 {[%clk 0:02:44]} 19...
Be7 {[%clk 0:01:52.7]} 20. Ne4 {[%clk 0:02:41.7]} 20... Rd8 {[%clk 0:01:46.6]}
21. Rxd8 {[%clk 0:02:40.7]} 21... Qxd8 {[%clk 0:01:47.1]} 22. Rd1 {[%clk
0:02:42.6]} 22... Qc8 {[%clk 0:01:46]} 23. Nd6 {[%clk 0:02:38.4]} 23... Bxd6
{[%clk 0:01:43.8]} 24. Rxd6 {[%clk 0:02:36.8]} 24... Rd8 {[%clk 0:01:44.5]} 25.
Qd3 {[%clk 0:02:32.1]} 25... Rxd6 {[%clk 0:01:39.3]} 26. cxd6 {[%clk 0:02:25.3]}
26... Qd7 {[%clk 0:01:38.8]} 27. b4 {[%clk 0:02:19.9]} 27... f5 {[%clk
0:01:35.5]} 28. h4 {[%clk 0:02:07.5]} 28... Kf7 {[%clk 0:01:25.5]} 29. Qb3+
{[%clk 0:02:05]} 29... Kg7 {[%clk 0:01:15.8]} 30. Qa3 {[%clk 0:02:01.2]} 30...
Qxd6 {[%clk 0:01:13.7]} 31. Qxa6 {[%clk 0:02:01.9]} 31... e4 {[%clk 0:01:07.7]}
32. fxe4 {[%clk 0:01:55.3]} 32... fxe4 {[%clk 0:01:06.7]} 33. Qb7+ {[%clk
0:01:56.8]} 33... Kf6 {[%clk 0:01:04.5]} 34. Qc8 {[%clk 0:01:50.5]} 34... Qe6
{[%clk 0:01:00.5]} 35. Qf8+ {[%clk 0:01:49.1]} 35... Ke5 {[%clk 0:00:57.7]} 36.
Qg7+ {[%clk 0:01:45.4]} 36... Kd6 {[%clk 0:00:50.7]} 37. Qxh6 {[%clk 0:01:45.6]}
37... Qg4+ {[%clk 0:00:47]} 38. Kh2 {[%clk 0:01:46.5]} 38... Kd5 {[%clk
0:00:46.8]} 39. Qf4 {[%clk 0:01:38.4]} 39... Qe6 {[%clk 0:00:25.8]} 40. f3
{[%clk 0:01:30.7]} 40... exf3 {[%clk 0:00:24.2]} 41. Qd4# {[%clk 0:01:31]} 1-0